[Event "Titled Tuesday Blitz July 20 2021"]
[White "Jovic, Stanoje"]
[Black "Shahade, Gregory"]
[WhiteFideId "905020"]
[BlackFideId "2009064"]
[WhiteElo "2286"]
[BlackElo "2681"]
[Result "0-1"]
[Round "10"]
[TimeControl "180+1"]
[Date "2021.07.21"]
[WhiteClock "0:00:16"]
[BlackClock "0:00:42"]

1. c4 {[%clk 0:03:00]}  Nf6 {[%clk 0:02:58]} 2. g3 {[%clk 0:03:00]}  g6 {[%clk 0:02:58]} 3. Bg2 {[%clk 0:03:01]}  d5 {[%clk 0:02:56]} 4. cxd5 {[%clk 0:03:00]}  Nxd5 {[%clk 0:02:57]} 5. Nc3 {[%clk 0:02:58]}  Nb6 {[%clk 0:02:51]} 6. a4 {[%clk 0:02:58]}  a5 {[%clk 0:02:50]} 7. h4 {[%clk 0:02:52]}  h6 {[%clk 0:02:47]} 8. f4 {[%clk 0:02:50]}  Bg7 {[%clk 0:02:45]} 9. h5 {[%clk 0:02:50]}  g5 {[%clk 0:02:44]} 10. fxg5 {[%clk 0:02:49]}  hxg5 {[%clk 0:02:42]} 11. d3 {[%clk 0:02:48]}  g4 {[%clk 0:02:35]} 12. h6 {[%clk 0:02:46]}  Be5 {[%clk 0:02:34]} 13. Bf4 {[%clk 0:02:43]}  Bxf4 {[%clk 0:02:22]} 14. gxf4 {[%clk 0:02:42]}  Nc6 {[%clk 0:02:16]} 15. Bxc6+ {[%clk 0:02:33]}  bxc6 {[%clk 0:02:16]} 16. e4 {[%clk 0:02:32]}  Qd6 {[%clk 0:02:10]} 17. Qd2 {[%clk 0:02:22]}  Rxh6 {[%clk 0:02:04]} 18. Rxh6 {[%clk 0:02:18]}  Qxh6 {[%clk 0:02:04]} 19. O-O-O {[%clk 0:02:16]}  Ba6 {[%clk 0:01:59]} 20. Nge2 {[%clk 0:02:06]}  O-O-O {[%clk 0:01:58]} 21. Qe3 {[%clk 0:02:04]}  Qh3 {[%clk 0:01:46]} 22. Ng3 {[%clk 0:01:51]}  Kb7 {[%clk 0:01:28]} 23. b3 {[%clk 0:01:47]}  Qh6 {[%clk 0:01:20]} 24. Kc2 {[%clk 0:01:43]}  e5 {[%clk 0:01:12]} 25. Nf5 {[%clk 0:01:37]}  Qxf4 {[%clk 0:01:07]} 26. Qxf4 {[%clk 0:01:25]}  exf4 {[%clk 0:01:08]} 27. Ne2 {[%clk 0:01:13]}  f3 {[%clk 0:01:08]} 28. Neg3 {[%clk 0:01:10]}  c5 {[%clk 0:01:06]} 29. Nh6 {[%clk 0:01:08]}  Rh8 {[%clk 0:00:58]} 30. Nhf5 {[%clk 0:01:04]}  Nd7 {[%clk 0:00:56]} 31. Kd2 {[%clk 0:00:50]}  Rh2+ {[%clk 0:00:55]} 32. Ke3 {[%clk 0:00:48]}  Ne5 {[%clk 0:00:53]} 33. d4 {[%clk 0:00:47]}  cxd4+ {[%clk 0:00:52]} 34. Rxd4 {[%clk 0:00:46]}  Rb2 {[%clk 0:00:50]} 35. Kf4 {[%clk 0:00:38]}  f6 {[%clk 0:00:50]} 36. Ne7 {[%clk 0:00:25]}  Rxb3 {[%clk 0:00:48]} 37. Nd5 {[%clk 0:00:24]}  f2 {[%clk 0:00:48]} 38. Ne3 {[%clk 0:00:21]}  Rb1 {[%clk 0:00:41]} 39. Nxg4 {[%clk 0:00:16]}  f1=Q+ {[%clk 0:00:41]} 40. Nxf1 {[%clk 0:00:16]}  Rxf1+ {[%clk 0:00:42]} 0-1


[Site "https://www.chess.com"]

[Event "Titled Tuesday Blitz July 20 2021"]
[White "Kamsky, Gata"]
[Black "Belyakov, Bogdan"]
[WhiteFideId "2000024"]
[BlackFideId "24104795"]
[WhiteElo "2644"]
[BlackElo "2407"]
[Result "1/2-1/2"]
[Round "10"]
[TimeControl "180+1"]
[Date "2021.07.20"]
[WhiteClock "0:00:15"]
[BlackClock "0:00:49"]

1. d4 {[%clk 0:03:00]}  Nf6 {[%clk 0:02:58]} 2. Nf3 {[%clk 0:03:00]}  g6 {[%clk 0:02:56]} 3. c3 {[%clk 0:02:58]}  Bg7 {[%clk 0:02:55]} 4. Bf4 {[%clk 0:02:59]}  c5 {[%clk 0:02:52]} 5. e3 {[%clk 0:02:58]}  b6 {[%clk 0:02:51]} 6. Nbd2 {[%clk 0:02:55]}  Bb7 {[%clk 0:02:51]} 7. a4 {[%clk 0:02:55]}  Nc6 {[%clk 0:02:48]} 8. h3 {[%clk 0:02:52]}  O-O {[%clk 0:02:47]} 9. Be2 {[%clk 0:02:52]}  d5 {[%clk 0:02:46]} 10. O-O {[%clk 0:02:51]}  Nd7 {[%clk 0:02:40]} 11. Qb3 {[%clk 0:02:51]}  e5 {[%clk 0:02:31]} 12. dxe5 {[%clk 0:02:51]}  Ndxe5 {[%clk 0:02:28]} 13. Nxe5 {[%clk 0:02:51]}  Nxe5 {[%clk 0:02:26]} 14. Nf3 {[%clk 0:02:52]}  Qe7 {[%clk 0:02:19]} 15. Rfd1 {[%clk 0:02:41]}  Rfd8 {[%clk 0:02:09]} 16. Nxe5 {[%clk 0:02:36]}  Bxe5 {[%clk 0:02:09]} 17. Bxe5 {[%clk 0:02:36]}  Qxe5 {[%clk 0:02:09]} 18. Bf3 {[%clk 0:02:37]}  Rd6 {[%clk 0:02:06]} 19. a5 {[%clk 0:02:32]}  Rad8 {[%clk 0:02:06]} 20. axb6 {[%clk 0:02:32]}  axb6 {[%clk 0:02:07]} 21. Ra7 {[%clk 0:02:22]}  Bc8 {[%clk 0:02:00]} 22. Ra8 {[%clk 0:02:09]}  Kg7 {[%clk 0:01:47]} 23. Ra7 {[%clk 0:01:11]}  Be6 {[%clk 0:01:40]} 24. Qb5 {[%clk 0:01:04]}  Bd7 {[%clk 0:01:35]} 25. Qa6 {[%clk 0:00:56]}  Bc8 {[%clk 0:01:32]} 26. Qa4 {[%clk 0:00:53]}  Bd7 {[%clk 0:01:25]} 27. Qh4 {[%clk 0:00:51]}  Be6 {[%clk 0:01:25]} 28. Qe7 {[%clk 0:00:40]}  d4 {[%clk 0:01:16]} 29. exd4 {[%clk 0:00:36]}  cxd4 {[%clk 0:01:16]} 30. cxd4 {[%clk 0:00:32]}  Rxd4 {[%clk 0:01:16]} 31. Rf1 {[%clk 0:00:25]}  Rd2 {[%clk 0:01:09]} 32. Bg4 {[%clk 0:00:20]}  R8d7 {[%clk 0:00:58]} 33. Rxd7 {[%clk 0:00:18]}  Rxd7 {[%clk 0:00:59]} 34. Qb4 {[%clk 0:00:18]}  Bxg4 {[%clk 0:00:53]} 35. hxg4 {[%clk 0:00:16]}  b5 {[%clk 0:00:53]} 36. Qc3 {[%clk 0:00:15]}  Qxc3 {[%clk 0:00:49]} 37. bxc3 {[%clk 0:00:15]} 1/2-1/2


[Site "https://www.chess.com"]

[Event "Titled Tuesday Blitz July 20 2021"]
[White "Lagunow, Raphael"]
[Black "Kretov, Evgenij"]
[WhiteFideId "24652644"]
[BlackFideId "4167821"]
[WhiteElo "2400"]
[BlackElo "2400"]
[Result "0-1"]
[Round "10"]
[TimeControl "180+1"]
[Date "2021.07.21"]
[WhiteClock "0:00:01"]
[BlackClock "0:00:59"]

1. e4 {[%clk 0:03:00]}  c5 {[%clk 0:03:00]} 2. Nf3 {[%clk 0:03:00]}  Nc6 {[%clk 0:03:00]} 3. d4 {[%clk 0:03:00]}  cxd4 {[%clk 0:03:00]} 4. Nxd4 {[%clk 0:03:01]}  g6 {[%clk 0:03:01]} 5. Nc3 {[%clk 0:03:01]}  Bg7 {[%clk 0:03:01]} 6. Be3 {[%clk 0:03:01]}  Nf6 {[%clk 0:03:02]} 7. Bc4 {[%clk 0:03:01]}  O-O {[%clk 0:03:02]} 8. Bb3 {[%clk 0:03:01]}  d6 {[%clk 0:03:02]} 9. f3 {[%clk 0:02:49]}  Bd7 {[%clk 0:03:01]} 10. Qd2 {[%clk 0:02:48]}  Nxd4 {[%clk 0:03:01]} 11. Bxd4 {[%clk 0:02:48]}  b5 {[%clk 0:03:02]} 12. O-O {[%clk 0:02:47]}  a5 {[%clk 0:03:01]} 13. a3 {[%clk 0:02:45]}  Rc8 {[%clk 0:03:00]} 14. Rad1 {[%clk 0:02:43]}  Bc6 {[%clk 0:02:44]} 15. Rfe1 {[%clk 0:02:28]}  Nd7 {[%clk 0:02:44]} 16. Bxg7 {[%clk 0:02:10]}  Kxg7 {[%clk 0:02:44]} 17. Bd5 {[%clk 0:02:10]}  Qb6+ {[%clk 0:02:40]} 18. Kh1 {[%clk 0:02:11]}  Nf6 {[%clk 0:02:35]} 19. Bxc6 {[%clk 0:02:02]}  Qxc6 {[%clk 0:02:31]} 20. Rc1 {[%clk 0:02:02]}  Rc7 {[%clk 0:02:23]} 21. Ne2 {[%clk 0:02:01]}  Qb6 {[%clk 0:02:18]} 22. c3 {[%clk 0:01:57]}  Rfc8 {[%clk 0:02:17]} 23. Rcd1 {[%clk 0:01:22]}  Rc4 {[%clk 0:02:14]} 24. b3 {[%clk 0:00:45]}  R4c5 {[%clk 0:02:13]} 25. Ra1 {[%clk 0:00:46]}  a4 {[%clk 0:02:12]} 26. bxa4 {[%clk 0:00:43]}  bxa4 {[%clk 0:02:11]} 27. Rab1 {[%clk 0:00:44]}  Rb5 {[%clk 0:02:09]} 28. Rb4 {[%clk 0:00:43]}  Qa5 {[%clk 0:01:56]} 29. Reb1 {[%clk 0:00:42]}  Rbc5 {[%clk 0:01:54]} 30. Qd4 {[%clk 0:00:28]}  Qa6 {[%clk 0:01:51]} 31. R1b2 {[%clk 0:00:21]}  Rc4 {[%clk 0:01:50]} 32. Rxc4 {[%clk 0:00:14]}  Rxc4 {[%clk 0:01:50]} 33. Qd3 {[%clk 0:00:15]}  Nd7 {[%clk 0:01:49]} 34. h4 {[%clk 0:00:10]}  Ne5 {[%clk 0:01:47]} 35. Qd5 {[%clk 0:00:09]}  Rc5 {[%clk 0:01:44]} 36. Qd4 {[%clk 0:00:06]}  h5 {[%clk 0:01:30]} 37. f4 {[%clk 0:00:03]}  Rc4 {[%clk 0:01:30]} 38. Qd5 {[%clk 0:00:03]}  Ng4 {[%clk 0:01:27]} 39. Rb7 {[%clk 0:00:02]}  Rc5 {[%clk 0:01:01]} 40. Qd4+ {[%clk 0:00:01]}  e5 {[%clk 0:00:59]} 0-1


[Site "https://www.chess.com"]

[Event "Titled Tuesday Blitz July 20 2021"]
[White "Lazavik, Denis"]
[Black "Tin, Jingyao"]
[WhiteFideId "13515110"]
[BlackFideId "5804418"]
[WhiteElo "2436"]
[BlackElo "2374"]
[Result "0-1"]
[Round "10"]
[TimeControl "180+1"]
[Date "2021.07.20"]
[WhiteClock "0:00:07"]
[BlackClock "0:00:10"]

1. d4 {[%clk 0:03:00]}  Nf6 {[%clk 0:02:59]} 2. c4 {[%clk 0:03:01]}  e6 {[%clk 0:02:59]} 3. Nf3 {[%clk 0:03:01]}  d5 {[%clk 0:02:59]} 4. Nc3 {[%clk 0:03:01]}  c6 {[%clk 0:02:59]} 5. e3 {[%clk 0:03:01]}  Nbd7 {[%clk 0:02:59]} 6. Qc2 {[%clk 0:03:01]}  Bd6 {[%clk 0:03:00]} 7. b3 {[%clk 0:03:00]}  O-O {[%clk 0:03:00]} 8. Be2 {[%clk 0:03:01]}  e5 {[%clk 0:03:00]} 9. cxd5 {[%clk 0:02:58]}  cxd5 {[%clk 0:03:00]} 10. Nb5 {[%clk 0:02:59]}  Bb8 {[%clk 0:03:00]} 11. Ba3 {[%clk 0:02:54]}  e4 {[%clk 0:02:50]} 12. Nd2 {[%clk 0:02:49]}  Re8 {[%clk 0:02:44]} 13. Rc1 {[%clk 0:02:47]}  Nf8 {[%clk 0:02:28]} 14. Nc7 {[%clk 0:02:31]}  Bxc7 {[%clk 0:02:26]} 15. Qxc7 {[%clk 0:02:32]}  Qxc7 {[%clk 0:02:26]} 16. Rxc7 {[%clk 0:02:30]}  Ne6 {[%clk 0:02:26]} 17. Rc3 {[%clk 0:02:06]}  Bd7 {[%clk 0:02:22]} 18. O-O {[%clk 0:02:04]}  Rac8 {[%clk 0:02:19]} 19. Rfc1 {[%clk 0:02:02]}  Rxc3 {[%clk 0:02:17]} 20. Rxc3 {[%clk 0:02:01]}  Rc8 {[%clk 0:02:18]} 21. Rxc8+ {[%clk 0:02:01]}  Bxc8 {[%clk 0:02:19]} 22. f3 {[%clk 0:01:58]}  exf3 {[%clk 0:02:09]} 23. gxf3 {[%clk 0:01:53]}  Bd7 {[%clk 0:02:06]} 24. Kf2 {[%clk 0:01:51]}  Bc6 {[%clk 0:02:05]} 25. Bd6 {[%clk 0:01:34]}  Nd7 {[%clk 0:01:57]} 26. Nb1 {[%clk 0:01:29]}  f6 {[%clk 0:01:50]} 27. Nc3 {[%clk 0:01:29]}  Kf7 {[%clk 0:01:49]} 28. Bd3 {[%clk 0:00:57]}  g6 {[%clk 0:01:34]} 29. a4 {[%clk 0:00:52]}  f5 {[%clk 0:01:27]} 30. b4 {[%clk 0:00:49]}  b6 {[%clk 0:01:22]} 31. b5 {[%clk 0:00:49]}  Bb7 {[%clk 0:01:23]} 32. Bc2 {[%clk 0:00:49]}  f4 {[%clk 0:01:09]} 33. Bb3 {[%clk 0:00:41]}  fxe3+ {[%clk 0:01:08]} 34. Kxe3 {[%clk 0:00:42]}  Ng7 {[%clk 0:01:06]} 35. Kd3 {[%clk 0:00:28]}  Ke6 {[%clk 0:01:05]} 36. Bc7 {[%clk 0:00:28]}  Ne8 {[%clk 0:01:04]} 37. Bg3 {[%clk 0:00:21]}  Nd6 {[%clk 0:01:03]} 38. Ne2 {[%clk 0:00:20]}  Nc4 {[%clk 0:00:59]} 39. Nf4+ {[%clk 0:00:19]}  Kf5 {[%clk 0:00:58]} 40. Bc2 {[%clk 0:00:13]}  Kf6 {[%clk 0:00:56]} 41. Bf2 {[%clk 0:00:09]}  Nf8 {[%clk 0:00:47]} 42. Kc3 {[%clk 0:00:09]}  Nd7 {[%clk 0:00:30]} 43. Bh4+ {[%clk 0:00:07]}  Kf7 {[%clk 0:00:28]} 44. Bb3 {[%clk 0:00:05]}  Nf6 {[%clk 0:00:11]} 45. Nd3 {[%clk 0:00:05]}  Ke6 {[%clk 0:00:11]} 46. Bg3 {[%clk 0:00:05]}  Nd7 {[%clk 0:00:10]} 47. Nf4+ {[%clk 0:00:04]}  Kf5 {[%clk 0:00:11]} 48. Nd3 {[%clk 0:00:04]}  Ke6 {[%clk 0:00:11]} 49. Bc7 {[%clk 0:00:03]}  g5 {[%clk 0:00:10]} 50. Nf2 {[%clk 0:00:03]}  a6 {[%clk 0:00:10]} 51. Bc2 {[%clk 0:00:03]}  axb5 {[%clk 0:00:10]} 52. axb5 {[%clk 0:00:04]}  Na3 {[%clk 0:00:10]} 53. Bd3 {[%clk 0:00:04]}  h6 {[%clk 0:00:10]} 54. Ng4 {[%clk 0:00:04]}  h5 {[%clk 0:00:10]} 55. Ne3 {[%clk 0:00:04]}  Nf6 {[%clk 0:00:09]} 56. Bf5+ {[%clk 0:00:04]}  Ke7 {[%clk 0:00:08]} 57. Bd3 {[%clk 0:00:04]}  Nd7 {[%clk 0:00:07]} 58. Kb4 {[%clk 0:00:03]}  Nc4 {[%clk 0:00:07]} 59. Nf5+ {[%clk 0:00:04]}  Kf6 {[%clk 0:00:07]} 60. Ng3 {[%clk 0:00:04]}  h4 {[%clk 0:00:07]} 61. Nh5+ {[%clk 0:00:04]}  Kf7 {[%clk 0:00:08]} 62. f4 {[%clk 0:00:04]}  g4 {[%clk 0:00:08]} 63. f5 {[%clk 0:00:04]}  Nf6 {[%clk 0:00:08]} 64. Nf4 {[%clk 0:00:02]}  g3 {[%clk 0:00:06]} 65. hxg3 {[%clk 0:00:03]}  hxg3 {[%clk 0:00:07]} 66. Ng2 {[%clk 0:00:02]}  Nh5 {[%clk 0:00:07]} 67. Be2 {[%clk 0:00:02]}  Ng7 {[%clk 0:00:07]} 68. Bg4 {[%clk 0:00:03]}  Nd2 {[%clk 0:00:02]} 69. Bxg3 {[%clk 0:00:02]}  Ne4 {[%clk 0:00:02]} 70. Be5 {[%clk 0:00:03]}  Nf6 {[%clk 0:00:03]} 71. Bf3 {[%clk 0:00:03]}  Bc8 {[%clk 0:00:03]} 72. Bxf6 {[%clk 0:00:02]}  Kxf6 {[%clk 0:00:04]} 73. Ne3 {[%clk 0:00:03]}  Bb7 {[%clk 0:00:04]} 74. Nxd5+ {[%clk 0:00:03]}  Bxd5 {[%clk 0:00:04]} 75. Bxd5 {[%clk 0:00:04]}  Nxf5 {[%clk 0:00:05]} 76. Kc4 {[%clk 0:00:04]}  Ne3+ {[%clk 0:00:05]} 77. Kb4 {[%clk 0:00:02]}  Nxd5+ {[%clk 0:00:06]} 78. Kc4 {[%clk 0:00:03]}  Ke6 {[%clk 0:00:06]} 79. Kd3 {[%clk 0:00:04]}  Kd6 {[%clk 0:00:07]} 80. Kc4 {[%clk 0:00:05]}  Nc7 {[%clk 0:00:07]} 81. Kb4 {[%clk 0:00:05]}  Kd5 {[%clk 0:00:08]} 82. Ka4 {[%clk 0:00:05]}  Kxd4 {[%clk 0:00:08]} 83. Kb4 {[%clk 0:00:06]}  Kd5 {[%clk 0:00:09]} 84. Ka4 {[%clk 0:00:07]}  Kc5 {[%clk 0:00:10]} 0-1


[Site "https://www.chess.com"]

[Event "Titled Tuesday Blitz July 20 2021"]
[White "Leitao, Rafael"]
[Black "De Silva, L M S T"]
[WhiteFideId "2101246"]
[BlackFideId "9953698"]
[WhiteElo "2609"]
[BlackElo "1621"]
[Result "1-0"]
[Round "10"]
[TimeControl "180+1"]
[Date "2021.07.20"]
[WhiteClock "0:01:17"]
[BlackClock "0:00:55"]

1. c4 {[%clk 0:03:00]}  e5 {[%clk 0:02:59]} 2. Nc3 {[%clk 0:02:59]}  Nf6 {[%clk 0:02:59]} 3. Nf3 {[%clk 0:02:58]}  Nc6 {[%clk 0:02:59]} 4. e4 {[%clk 0:02:58]}  Bc5 {[%clk 0:02:55]} 5. Nxe5 {[%clk 0:02:57]}  Nxe5 {[%clk 0:02:54]} 6. d4 {[%clk 0:02:57]}  Bb4 {[%clk 0:02:52]} 7. dxe5 {[%clk 0:02:56]}  Nxe4 {[%clk 0:02:53]} 8. Qd3 {[%clk 0:02:49]}  Nxc3 {[%clk 0:02:51]} 9. bxc3 {[%clk 0:02:49]}  Ba5 {[%clk 0:02:51]} 10. Bf4 {[%clk 0:02:48]}  O-O {[%clk 0:02:50]} 11. Be2 {[%clk 0:02:25]}  Qe7 {[%clk 0:02:18]} 12. O-O {[%clk 0:02:21]}  h6 {[%clk 0:02:03]} 13. Qg3 {[%clk 0:02:12]}  Kh8 {[%clk 0:02:00]} 14. Rad1 {[%clk 0:02:05]}  Re8 {[%clk 0:01:48]} 15. Bh5 {[%clk 0:01:52]}  b6 {[%clk 0:01:41]} 16. Bg4 {[%clk 0:01:38]}  Bb7 {[%clk 0:01:38]} 17. Rxd7 {[%clk 0:01:36]}  Qf8 {[%clk 0:01:28]} 18. e6 {[%clk 0:01:26]}  fxe6 {[%clk 0:01:23]} 19. Bxh6 {[%clk 0:01:18]}  Bc8 {[%clk 0:00:55]} 20. Bxg7+ {[%clk 0:01:17]} 1-0


[Site "https://www.chess.com"]

[Event "Titled Tuesday Blitz July 20 2021"]
[White "Locci, Damiano"]
[Black "Albuquerque Junior,Wellington S."]
[WhiteFideId "819751"]
[BlackFideId "2151480"]
[WhiteElo "2426"]
[BlackElo "2042"]
[Result "1-0"]
[Round "10"]
[TimeControl "180+1"]
[Date "2021.07.21"]
[WhiteClock "0:00:01"]
[BlackClock "0:00:01"]

1. e4 {[%clk 0:03:00]}  c5 {[%clk 0:02:56]} 2. Nc3 {[%clk 0:02:59]}  e6 {[%clk 0:02:54]} 3. g3 {[%clk 0:02:59]}  Nc6 {[%clk 0:02:51]} 4. Bg2 {[%clk 0:02:58]}  Nge7 {[%clk 0:02:38]} 5. d3 {[%clk 0:02:57]}  b6 {[%clk 0:02:32]} 6. Be3 {[%clk 0:02:57]}  Bb7 {[%clk 0:02:24]} 7. Qd2 {[%clk 0:02:57]}  h5 {[%clk 0:02:02]} 8. h3 {[%clk 0:02:54]}  d6 {[%clk 0:01:55]} 9. Nge2 {[%clk 0:02:47]}  g6 {[%clk 0:01:54]} 10. O-O {[%clk 0:02:45]}  Bg7 {[%clk 0:01:51]} 11. f4 {[%clk 0:02:45]}  a6 {[%clk 0:01:38]} 12. d4 {[%clk 0:02:36]}  cxd4 {[%clk 0:01:34]} 13. Nxd4 {[%clk 0:02:37]}  Qc7 {[%clk 0:01:28]} 14. Ndb5 {[%clk 0:02:00]}  axb5 {[%clk 0:01:25]} 15. Nxb5 {[%clk 0:02:01]}  Qd7 {[%clk 0:01:01]} 16. Nxd6+ {[%clk 0:01:57]}  Kf8 {[%clk 0:01:01]} 17. Rad1 {[%clk 0:01:47]}  Kg8 {[%clk 0:00:43]} 18. f5 {[%clk 0:01:34]}  exf5 {[%clk 0:00:35]} 19. exf5 {[%clk 0:01:35]}  gxf5 {[%clk 0:00:28]} 20. Qf2 {[%clk 0:01:28]}  Ba6 {[%clk 0:00:20]} 21. Nxf7 {[%clk 0:00:53]}  Qe6 {[%clk 0:00:09]} 22. Ng5 {[%clk 0:00:53]}  Qxa2 {[%clk 0:00:07]} 23. Rfe1 {[%clk 0:00:38]}  Qxb2 {[%clk 0:00:07]} 24. Ne6 {[%clk 0:00:19]}  Bc4 {[%clk 0:00:06]} 25. Nxg7 {[%clk 0:00:12]}  Qxg7 {[%clk 0:00:07]} 26. Bf4 {[%clk 0:00:08]}  Rf8 {[%clk 0:00:05]} 27. Qxb6 {[%clk 0:00:05]}  Bd5 {[%clk 0:00:01]} 28. Rxd5 {[%clk 0:00:01]} 1-0


[Site "https://www.chess.com"]

[Event "Titled Tuesday Blitz July 20 2021"]
[White "Madaminov, Mukhiddin"]
[Black "Tologon tegin, Semetei"]
[WhiteFideId "14210703"]
[BlackFideId "13800574"]
[WhiteElo "1747"]
[BlackElo "2224"]
[Result "1-0"]
[Round "10"]
[TimeControl "180+1"]
[Date "2021.07.20"]
[WhiteClock "0:00:11"]
[BlackClock "0:00:04"]

1. e4 {[%clk 0:03:00]}  c5 {[%clk 0:02:59]} 2. Nf3 {[%clk 0:03:00]}  d6 {[%clk 0:02:59]} 3. Bb5+ {[%clk 0:03:00]}  Nd7 {[%clk 0:02:59]} 4. O-O {[%clk 0:03:00]}  a6 {[%clk 0:02:57]} 5. Bd3 {[%clk 0:02:58]}  Ngf6 {[%clk 0:02:56]} 6. Re1 {[%clk 0:02:58]}  g6 {[%clk 0:02:56]} 7. c3 {[%clk 0:02:58]}  Bg7 {[%clk 0:02:56]} 8. Bc2 {[%clk 0:02:59]}  Ne5 {[%clk 0:02:43]} 9. d4 {[%clk 0:02:41]}  Nxf3+ {[%clk 0:02:43]} 10. Qxf3 {[%clk 0:02:40]}  cxd4 {[%clk 0:02:43]} 11. cxd4 {[%clk 0:02:40]}  O-O {[%clk 0:02:43]} 12. Nc3 {[%clk 0:02:41]}  Bg4 {[%clk 0:02:34]} 13. Qg3 {[%clk 0:02:38]}  Be6 {[%clk 0:02:31]} 14. Be3 {[%clk 0:02:21]}  Rc8 {[%clk 0:02:30]} 15. Rac1 {[%clk 0:02:17]}  b5 {[%clk 0:02:30]} 16. a3 {[%clk 0:02:17]}  Qa5 {[%clk 0:02:15]} 17. Bd2 {[%clk 0:02:14]}  Qb6 {[%clk 0:02:14]} 18. Be3 {[%clk 0:02:12]}  Qb7 {[%clk 0:02:11]} 19. Bd3 {[%clk 0:02:00]}  Ng4 {[%clk 0:02:09]} 20. h3 {[%clk 0:01:51]}  Nxe3 {[%clk 0:02:09]} 21. Qxe3 {[%clk 0:01:50]}  Bc4 {[%clk 0:02:03]} 22. Bb1 {[%clk 0:01:47]}  b4 {[%clk 0:02:01]} 23. axb4 {[%clk 0:01:45]}  Qxb4 {[%clk 0:02:02]} 24. Qd2 {[%clk 0:01:30]}  Rb8 {[%clk 0:01:52]} 25. Rc2 {[%clk 0:01:17]}  Bb3 {[%clk 0:01:51]} 26. Rcc1 {[%clk 0:01:17]}  Bxd4 {[%clk 0:01:50]} 27. h4 {[%clk 0:01:07]}  h5 {[%clk 0:01:38]} 28. g4 {[%clk 0:01:02]}  hxg4 {[%clk 0:01:20]} 29. Qf4 {[%clk 0:01:00]}  Kg7 {[%clk 0:01:12]} 30. h5 {[%clk 0:00:54]}  Rh8 {[%clk 0:01:11]} 31. Nd5 {[%clk 0:00:47]}  Bxd5 {[%clk 0:01:10]} 32. exd5 {[%clk 0:00:45]}  Rxh5 {[%clk 0:01:09]} 33. Rxe7 {[%clk 0:00:42]}  Bf6 {[%clk 0:00:42]} 34. Rxf7+ {[%clk 0:00:22]}  Kxf7 {[%clk 0:00:35]} 35. Rc7+ {[%clk 0:00:23]}  Kg8 {[%clk 0:00:35]} 36. Rc8+ {[%clk 0:00:21]}  Kh7 {[%clk 0:00:20]} 37. Rc7+ {[%clk 0:00:13]}  Bg7 {[%clk 0:00:19]} 38. Bxg6+ {[%clk 0:00:13]}  Kxg6 {[%clk 0:00:11]} 39. Qf7+ {[%clk 0:00:13]}  Kg5 {[%clk 0:00:11]} 40. Qxg7+ {[%clk 0:00:13]}  Kh4 {[%clk 0:00:11]} 41. Qe7+ {[%clk 0:00:12]}  Rg5 {[%clk 0:00:10]} 42. Qe3 {[%clk 0:00:10]}  Rh8 {[%clk 0:00:07]} 43. Qg3+ {[%clk 0:00:09]}  Kh5 {[%clk 0:00:07]} 44. Qh2+ {[%clk 0:00:08]}  Kg6 {[%clk 0:00:07]} 45. Qxh8 {[%clk 0:00:09]}  Qe1+ {[%clk 0:00:07]} 46. Kg2 {[%clk 0:00:09]}  Qe4+ {[%clk 0:00:08]} 47. Kh2 {[%clk 0:00:10]}  Qf4+ {[%clk 0:00:07]} 48. Kg1 {[%clk 0:00:10]}  Re5 {[%clk 0:00:01]} 49. Rg7+ {[%clk 0:00:09]}  Kf5 {[%clk 0:00:02]} 50. Rf7+ {[%clk 0:00:09]}  Ke4 {[%clk 0:00:03]} 51. Rxf4+ {[%clk 0:00:10]}  Kxf4 {[%clk 0:00:03]} 52. Qf6+ {[%clk 0:00:11]}  Rf5 {[%clk 0:00:04]} 53. Qxd6+ {[%clk 0:00:11]} 1-0


[Site "https://www.chess.com"]

[Event "Titled Tuesday Blitz July 20 2021"]
[White "Maltsevskaya, Aleksandra"]
[Black "Molina, Roberto Junio Brito"]
[WhiteFideId "24174041"]
[BlackFideId "2109450"]
[WhiteElo "2225"]
[BlackElo "2402"]
[Result "1-0"]
[Round "10"]
[TimeControl "180+1"]
[Date "2021.07.20"]
[WhiteClock "0:00:02"]
[BlackClock "0:00:01"]

1. e4 {[%clk 0:02:53]}  c5 {[%clk 0:02:56]} 2. Nf3 {[%clk 0:02:50]}  e6 {[%clk 0:02:55]} 3. d4 {[%clk 0:02:47]}  cxd4 {[%clk 0:02:55]} 4. Nxd4 {[%clk 0:02:48]}  Nc6 {[%clk 0:02:55]} 5. Nc3 {[%clk 0:02:46]}  Qc7 {[%clk 0:02:55]} 6. f4 {[%clk 0:02:43]}  a6 {[%clk 0:02:54]} 7. Nxc6 {[%clk 0:02:42]}  Qxc6 {[%clk 0:02:52]} 8. Bd3 {[%clk 0:02:40]}  b5 {[%clk 0:02:52]} 9. Qe2 {[%clk 0:02:39]}  Bb7 {[%clk 0:02:51]} 10. Bd2 {[%clk 0:02:38]}  Nf6 {[%clk 0:02:49]} 11. a3 {[%clk 0:02:26]}  Rc8 {[%clk 0:02:47]} 12. e5 {[%clk 0:02:13]}  Nd5 {[%clk 0:02:38]} 13. Ne4 {[%clk 0:02:13]}  Be7 {[%clk 0:02:31]} 14. O-O {[%clk 0:02:11]}  O-O {[%clk 0:02:22]} 15. Kh1 {[%clk 0:02:10]}  f5 {[%clk 0:02:21]} 16. exf6 {[%clk 0:02:09]}  Nxf6 {[%clk 0:02:21]} 17. Ng5 {[%clk 0:02:05]}  h6 {[%clk 0:02:16]} 18. Nf3 {[%clk 0:02:03]}  Bd6 {[%clk 0:01:53]} 19. Ne5 {[%clk 0:01:01]}  Qc7 {[%clk 0:01:48]} 20. Ng6 {[%clk 0:00:45]}  Rf7 {[%clk 0:01:43]} 21. Ne5 {[%clk 0:00:36]}  Rff8 {[%clk 0:01:35]} 22. Ng4 {[%clk 0:00:36]}  Rce8 {[%clk 0:01:24]} 23. Bc3 {[%clk 0:00:30]}  Nxg4 {[%clk 0:00:46]} 24. Qxg4 {[%clk 0:00:30]}  Re7 {[%clk 0:00:47]} 25. Qg6 {[%clk 0:00:28]}  Rf5 {[%clk 0:00:36]} 26. Rae1 {[%clk 0:00:16]}  Ref7 {[%clk 0:00:15]} 27. Bxf5 {[%clk 0:00:15]}  exf5 {[%clk 0:00:16]} 28. Re8+ {[%clk 0:00:12]}  Bf8 {[%clk 0:00:16]} 29. Bb4 {[%clk 0:00:10]}  Be4 {[%clk 0:00:14]} 30. Bxf8 {[%clk 0:00:08]}  Rxf8 {[%clk 0:00:15]} 31. Rxf8+ {[%clk 0:00:08]}  Kxf8 {[%clk 0:00:16]} 32. c3 {[%clk 0:00:07]}  d6 {[%clk 0:00:15]} 33. Rd1 {[%clk 0:00:07]}  d5 {[%clk 0:00:15]} 34. Qg3 {[%clk 0:00:06]}  a5 {[%clk 0:00:15]} 35. Qe3 {[%clk 0:00:06]}  Qc4 {[%clk 0:00:15]} 36. Kg1 {[%clk 0:00:06]}  Kg8 {[%clk 0:00:15]} 37. h3 {[%clk 0:00:05]}  b4 {[%clk 0:00:15]} 38. axb4 {[%clk 0:00:05]}  axb4 {[%clk 0:00:16]} 39. cxb4 {[%clk 0:00:05]}  Qxb4 {[%clk 0:00:17]} 40. Rd2 {[%clk 0:00:05]}  Kh7 {[%clk 0:00:15]} 41. Kh2 {[%clk 0:00:06]}  Kg6 {[%clk 0:00:15]} 42. Qg3+ {[%clk 0:00:06]}  Kh7 {[%clk 0:00:15]} 43. Qc3 {[%clk 0:00:07]}  Qb6 {[%clk 0:00:15]} 44. b4 {[%clk 0:00:07]}  Qa6 {[%clk 0:00:12]} 45. Rb2 {[%clk 0:00:04]}  Qf1 {[%clk 0:00:12]} 46. Qg3 {[%clk 0:00:03]}  d4 {[%clk 0:00:10]} 47. Ra2 {[%clk 0:00:03]}  Qb5 {[%clk 0:00:03]} 48. Ra7 {[%clk 0:00:03]}  Bb7 {[%clk 0:00:04]} 49. Ra5 {[%clk 0:00:02]}  Qxb4 {[%clk 0:00:04]} 50. Rxf5 {[%clk 0:00:02]}  Qd6 {[%clk 0:00:03]} 51. Rf7 {[%clk 0:00:02]}  Qd5 {[%clk 0:00:01]} 52. Qxg7# {[%clk 0:00:02]} 1-0


[Site "https://www.chess.com"]